Cogmind - Beta 11.1 @@@ ROGUE MODE // 2022.04.24 @ 00:33:02 Player: Infomantis Result: Self-destructed Performance ------------- Evolutions (2) 1000 Regions Visited (8) 1600 Robots Destroyed (58) 290 Value Destroyed (1290) 1290 Prototype IDs (9) 180 Alien Tech Used (0) 0 Bonus (41) 41 TOTAL SCORE: 4401 Bonus ------- Follower Combat Kills 41 Cogmind --------- Core Integrity 396/550 Matter 300/300 Energy 150/150 System Corruption 0% Temperature Cool (0) Movement Treading (152) Location -8/Storage Parts ------- > --- POWER (1) -------- Light Angular Momentum Engine > --- PROPULSION (3) --- Improved Treads Advanced Treads > --- UTILITY (4) ------ Improved Heat Sink Large Storage Unit Seismic Detector Hardened Light Armor Plating > --- WEAPON (3) ------- Advanced Beam Rifle Heavy Assault Rifle Minigun > --- INVENTORY (15) --- Deuterium Engine Nuclear Core Seismic Detector Target Analyzer Hardened Medium Armor Plating Improved Light Armor Plating System Shield Bomb Drone Bay (16/16) Heavy EM Shotgun Heavy Assault Rifle Missile Launcher Makeshift Axe Peak State ------------ > --- POWER ------------ Light Nuclear Core > --- PROPULSION ------- Improved Treads Improved Treads Advanced Treads > --- UTILITY ---------- Large Storage Unit Seismic Detector Hardened Light Armor Plating Hacking Suite > --- WEAPON ----------- Advanced Beam Rifle Heavy Assault Rifle Minigun > --- INVENTORY -------- Deuterium Engine Nuclear Core Seismic Detector Target Analyzer Hardened Light Armor Plating Hardened Medium Armor Plating Improved Light Armor Plating System Shield Bomb Drone Bay Heavy EM Shotgun Missile Launcher Makeshift Axe [Rating: 30] Favorites ----------- Power Nuclear Core Engine Light Ion Engine Power Core Nuclear Core Propulsion Aluminum Leg Treads Improved Treads Leg Aluminum Leg Wheel Compact Wheel Utility Seismic Detector Device Seismic Detector Storage Large Storage Unit Processor Advanced Visual Processing Unit Hackware Hacking Suite Protection Hardened Light Armor Plating Weapon Light Assault Rifle Energy Gun Particle Gun Energy Cannon Light EM Pulse Cannon Ballistic Gun Light Assault Rifle Ballistic Cannon Light Cannon Launcher Rocket Launcher Slashing Weapon Makeshift Axe Build | -11 -10 -10 -9 -9 -9 -8 -8 -8 ------- Run | Scr Mat Min Mat Min Exi Min Mat Sto Slots Evolved 4 | . . . 2 . . . 2 . Power . | . . . . . . . . . Propulsion 1 | . . . 1 . . . . . Utility 2 | . . . 1 . . . 1 . Weapon 1 | . . . . . . . 1 . Parts Attached 60 | 8 . 2 16 8 2 7 11 6 Power 4 | 1 . . 1 . . . 1 1 Engine 2 | 1 . . . . . . . 1 Core 2 | . . . 1 . . . 1 . Reactor . | . . . . . . . . . Propulsion 13 | 2 . 1 3 2 1 1 1 2 Treads 3 | . . . . . . . 1 2 Leg 8 | 2 . 1 3 2 . . . . Wheel 2 | . . . . . 1 1 . . Hover . | . . . . . . . . . Flight . | . . . . . . . . . Utility 17 | 2 . 1 6 2 . 1 3 2 Device 9 | 1 . 1 4 1 . . 1 1 Storage 2 | 1 . . 1 . . . . . Processor 2 | . . . 1 1 . . . . Hackware 1 | . . . . . . . 1 . Protection 3 | . . . . . . 1 1 1 Artifact . | . . . . . . . . . Weapon 26 | 3 . . 6 4 1 5 6 1 Energy Gun 4 | . . . . . . 1 3 . Energy Cannon 3 | . . . . 1 . 2 . . Ballistic Gun 9 | 3 . . 1 1 . . 3 1 Ballistic Cannon 5 | . . . 3 1 . 1 . . Launcher 3 | . . . 1 1 . 1 . . Special Weapon . | . . . . . . . . . Impact Weapon . | . . . . . . . . . Slashing Weapon 2 | . . . 1 . 1 . . . Piercing Weapon . | . . . . . . . . . Special Melee Weapon . | . . . . . . . . . Unidentified Prototypes 3 | . . . 1 . . . 2 . Parts Lost 15 | . . 1 . 4 . 2 3 5 Power 1 | . . . . . . . 1 . Propulsion 4 | . . . . 1 . . . 3 Utility 6 | . . 1 . 1 . 1 1 2 Weapon 4 | . . . . 2 . 1 1 . Highest Loss Streak 5 | . . 1 . 2 . 2 2 5 To Critical Strikes . | . . . . . . . . . Average Slot Usage (%) 96 | . 100 99 92 99 88 98 97 93 Engine 2 | . 14 14 . . . . . 4 Core 8 | . . . 10 11 11 11 8 4 Treads 1 | . . . . . . . 7 14 Leg 22 | . 28 28 25 32 31 11 1 . Wheel 4 | . . . . . 1 21 18 7 Device 12 | . 14 13 11 11 11 11 14 11 Storage 11 | . 14 14 11 11 11 11 9 9 Processor 6 | . . . 10 10 11 3 . . Protection 2 | . . . . . . 7 9 9 Energy Gun 2 | . . . . . . 7 9 9 Energy Cannon 1 | . . . . 1 . 8 . . Ballistic Gun 12 | . 28 28 11 9 . . 16 18 Ballistic Cannon 4 | . . . 8 10 . 2 . . Slashing Weapon 1 | . . . . . 11 . . . Naked Turns . | . . . . . . . . . Heaviest Build 44 | 12 12 12 32 35 31 38 41 44 Greatest Support 45 | 20 20 20 30 30 30 26 26 45 Greatest Overweight (x) 3 | 3 . . 1 1 1 1 1 2 Average Overweight (x) . | . . . . 1 1 1 1 . Largest Inventory Capacity 15 | 8 8 8 15 15 15 15 15 15 Average Capacity 12 | 7 8 8 8 15 15 15 15 15 Most Carried 15 | 6 8 8 8 15 15 15 15 15 Average Carried 11 | 4 7 7 7 11 15 14 14 13 Final Capacity 15 | 8 8 8 15 15 15 15 15 15 Final Carried 15 | 6 8 8 8 14 15 15 15 13 Class Distribution -------------------- 49% | Scavenger-Mutant 36% | Mutant 7% | Scavenger-Tank 6% | Tank Dominant Class ---------------- Mutant | -10/Materials Mutant | -10/Mines Mutant | -9/Materials Scavenger-Mutant | -9/Mines Scavenger-Mutant | -9/Exiles Scavenger-Mutant | -8/Mines Scavenger-Tank | -8/Materials Tank | -8/Storage Resources | -11 -10 -10 -9 -9 -9 -8 -8 -8 ----------- Run | Scr Mat Min Mat Min Exi Min Mat Sto Matter Collected 1554 | 263 57 79 208 210 . 170 337 230 Remotely . | . . . . . . . . . Salvage Created 1471 | 32 57 140 239 179 . 149 360 315 Parts 100 | 4 4 7 15 22 . 13 18 17 Haulers Intercepted 1 | . . . . . . . 1 . Recyclers Shooed 3 | . . 2 . 1 . . . . Parts Field Recycled . | . . . . . . . . . Retrieved Matter . | . . . . . . . . . Parts Self-Destructed . | . . . . . . . . . Prevented . | . . . . . . . . . Kills | -11 -10 -10 -9 -9 -9 -8 -8 -8 ------- Run | Scr Mat Min Mat Min Exi Min Mat Sto Combat Hostiles Destroyed 46 | . 2 5 11 10 . 6 7 5 Guns 20 | . 2 5 1 . . . 7 5 Cannons 14 | . . . 6 5 . 3 . . AOE 12 | . . . 4 5 . 3 . . Classes Destroyed 9 | 1 2 1 1 1 . 1 2 . Worker 1 | . . . . 1 . . . . Tunneler 5 | 2 . . . 2 . 1 . . Hauler 1 | . . . . . . . 1 . Recycler 2 | . . . . . . . 1 1 Watcher 3 | . 1 . 2 . . . . . Swarmer 24 | . 2 3 5 8 . 3 3 . Grunt 18 | . . 2 5 2 . 2 3 4 Brawler 1 | . . . . . . 1 . . Sentry 3 | . . . 1 . . . 1 1 Best Kill Streak 6 | 2 3 3 3 6 . 4 5 3 Combat Bots Only 6 | . 2 3 3 6 . 3 3 3 Max Kills in Single Turn 3 | 1 1 1 3 2 . 1 2 1 Gunslinging 1 | . . . . . . . 1 . Exploded 3 | . . . 3 2 . 1 . . Melee . | . . . . . . . . . Uniques/NPCs Destroyed . | . . . . . . . . . Combat | -11 -10 -10 -9 -9 -9 -8 -8 -8 -------- Run | Scr Mat Min Mat Min Exi Min Mat Sto Damage Taken 2510 | . 45 131 410 539 . 201 319 865 Core 399 | . 10 16 36 156 . 27 28 126 Absorbed by Shields . | . . . . . . . . . Core Remaining (%) 78 | 100 . 89 . . . 45 . . Volleys Fired 131 | 7 7 12 29 18 . 13 20 25 Largest 3 | 2 2 2 2 2 . 2 3 3 Hottest 141 | 40 40 40 55 91 . 91 141 109 Shots Fired 275 | 14 14 24 58 33 . 21 58 53 Gun 202 | 14 14 24 29 10 . 1 57 53 Cannon 60 | . . . 27 18 . 14 1 . Launcher 13 | . . . 2 5 . 6 . . Special . | . . . . . . . . . Kinetic 225 | 14 14 24 56 24 . 6 37 50 Thermal 24 | . . . . . . 1 20 3 Explosive 13 | . . . 2 5 . 6 . . Electromagnetic 13 | . . . . 4 . 8 1 . Robot Hit Streak 19 | 2 4 7 7 7 . 19 8 16 Robot Miss Streak 5 | 2 3 2 5 5 . 1 3 3 Penetration Max . | . . . . . . . . . Secondary Targets 5 | . 1 1 . . . . 3 . Max Gunslinging Chain 1 | . 1 1 . . . . 1 . Shots Hit Robots 170 | 6 5 17 36 14 . 14 36 42 Core Hits 85 | 2 3 8 19 17 . 9 15 12 Critical Kills . | . . . . . . . . . Critical Parts Destroyed 1 | . 1 . . . . . . . Critical Strikes 4 | . 1 . 1 . . . 2 . Burn 2 | . . . . . . . 2 . Destroy 1 | . 1 . . . . . . . Blast 1 | . . . 1 . . . . . Melee Attacks 2 | . . . 2 . . . . . Impact . | . . . . . . . . . Slashing 2 | . . . 2 . . . . . Piercing . | . . . . . . . . . Sneak Attacks . | . . . . . . . . . Combat Hostiles . | . . . . . . . . . Follow-up Attacks . | . . . . . . . . . Damage Inflicted 3334 | 60 58 195 758 559 . 483 528 693 Guns 1760 | 60 58 195 208 18 . . 528 693 Cannons 811 | . . . 268 262 . 281 . . Explosions 759 | . . . 282 275 . 202 . . Melee . | . . . . . . . . . Ramming 4 | . . . . 4 . . . . Kinetic 2037 | 60 58 195 476 202 . 116 303 627 Thermal 291 | . . . . . . . 225 66 Explosive 759 | . . . 282 275 . 202 . . Electromagnetic 243 | . . . . 78 . 165 . . Impact . | . . . . . . . . . Slashing . | . . . . . . . . . Piercing . | . . . . . . . . . Highest Corruption 10 | . . . . 9 9 10 . . Average Corruption 9 | . . . . 9 9 9 . . Corruption Purged . | . . . . . . . . . Corruption Blocked . | . . . . . . . . . Effects 36 | . . . . 10 11 15 . . Message Errors 8 | . . . . 3 2 3 . . Matter Fused 8 | . . . . 1 4 3 . . Heat Flow Errors 3 | . . . . 1 . 2 . . Energy Discharges 8 | . . . . 3 3 2 . . Data Loss (minor) 1 | . . . . . . 1 . . Data Loss (major) 2 | . . . . 1 1 . . . Misfires 3 | . . . . 1 . 2 . . Alerts 3 | . . . . . 1 2 . . Overload Shots . | . . . . . . . . . Overflow Damage 48 | . . . . . . 48 . . Projectiles . | . . . . . . . . . Explosions 48 | . . . . . . 48 . . Melee . | . . . . . . . . . Knockbacks 4 | . . . 1 3 . . . . Impact . | . . . . . . . . . Kinetic 4 | . . . 1 3 . . . . Secondary . | . . . . . . . . . Self-Inflicted Damage . | . . . . . . . . . Shots . | . . . . . . . . . Rammed . | . . . . . . . . . Targets Rammed 1 | . . . . 1 . . . . Kicked 1 | . . . . 1 . . . . Crushed . | . . . . . . . . . Highest Temperature 275 | . . 18 24 113 . 275 199 222 Average Temperature 93 | . . 10 10 35 . 108 112 141 Received Heat Transfer 768 | . . 45 84 27 . 63 144 405 Siege Activations . | . . . . . . . . . Robots Corrupted . | . . . . . . . . . Combat Hostiles . | . . . . . . . . . Parts Fried . | . . . . . . . . . Impact Corruptions . | . . . . . . . . . Robots Melted . | . . . . . . . . . Combat Hostiles . | . . . . . . . . . Parts Melted 3 | . . . . . . . 3 . Heat Transferred 777 | . . . . . . . 666 111 Parts Sabotaged . | . . . . . . . . . Parts Stolen . | . . . . . . . . . Parts Stripped . | . . . . . . . . . Power Chain Reactions . | . . . . . . . . . Missiles Intercepted . | . . . . . . . . . Alert | -11 -10 -10 -9 -9 -9 -8 -8 -8 ------- Run | Scr Mat Min Mat Min Exi Min Mat Sto Peak Influence 296 | 10 161 178 296 277 . 188 268 168 Initial 102 | . 6 62 . 102 . . 72 28 Average 99 | 3 56 87 132 82 . 112 158 83 Maximum Alert Level 1 | . . . 1 1 . . 1 . Low Security (%) 87 | 100 100 100 69 86 . 100 77 100 Level 1 12 | . . . 30 13 . . 22 . Level 2 . | . . . . . . . . . Level 3 . | . . . . . . . . . Level 4 . | . . . . . . . . . Level 5 . | . . . . . . . . . High Security . | . . . . . . . . . Max Security . | . . . . . . . . . Squads Dispatched 8 | . 2 . 3 . . . 1 2 Investigation 3 | . 1 . 2 . . . . . Extermination . | . . . . . . . . . Reinforcement 3 | . 1 . 1 . . . 1 . Assault 2 | . . . . . . . . 2 Garrison . | . . . . . . . . . Intercept . | . . . . . . . . . Searches Triggered . | . . . . . . . . . Construction Impeded . | . . . . . . . . . Haulers Reinforced . | . . . . . . . . . Active Scanning Responses . | . . . . . . . . . Cargo Convoy Interrupts . | . . . . . . . . . Stealth | -11 -10 -10 -9 -9 -9 -8 -8 -8 --------- Run | Scr Mat Min Mat Min Exi Min Mat Sto Distress Signals 4 | . . . 2 . . . . 2 Communications Jammed . | . . . . . . . . . Distress Signals . | . . . . . . . . . Times Spotted 66 | . 8 5 17 10 . 7 9 10 Peak Tracking Total 6 | . 4 3 4 6 . 3 3 6 Tactical Retreats 3 | . 3 . . . . . . . Traps | -11 -10 -10 -9 -9 -9 -8 -8 -8 ------- Run | Scr Mat Min Mat Min Exi Min Mat Sto Traps Triggered 1 | . . . . . . . . 1 Indirectly . | . . . . . . . . . Trap Hack Attempts . | . . . . . . . . . Triggered . | . . . . . . . . . Disarmed . | . . . . . . . . . Reprogrammed . | . . . . . . . . . Reused . | . . . . . . . . . Traps Extracted . | . . . . . . . . . Installed . | . . . . . . . . . Triggered . | . . . . . . . . . Machines | -11 -10 -10 -9 -9 -9 -8 -8 -8 ---------- Run | Scr Mat Min Mat Min Exi Min Mat Sto Machines Disabled 2 | . . . 1 . . 1 . . Max in Single Turn 1 | . . . 1 . . 1 . . Garrison Access 1 | . . . . . . . . 1 Machines Sabotaged . | . . . . . . . . . Garrisons Compromised . | . . . . . . . . . Overloaded Fab Kills . | . . . . . . . . . Hacking | -11 -10 -10 -9 -9 -9 -8 -8 -8 --------- Run | Scr Mat Min Mat Min Exi Min Mat Sto Machines Accessed 18 | . 3 2 6 . 2 1 2 2 Terminals 13 | . 3 1 5 . . 1 2 1 Fabricators . | . . . . . . . . . Repair Stations . | . . . . . . . . . Recycling Units 1 | . . . 1 . . . . . Scanalyzers . | . . . . . . . . . Garrison Access 1 | . . . . . . . . 1 Total Hacks 53 | . 11 7 20 . 2 4 6 3 Successful 26 | . 6 3 9 . 2 1 4 1 Failed 27 | . 5 4 11 . . 3 2 2 Catastrophic 3 | . 1 . 1 . . 1 . . Database Lockouts . | . . . . . . . . . Manual 36 | . 8 6 11 . . 4 5 2 Terminals 48 | . 11 6 19 . . 4 6 2 Fabricators . | . . . . . . . . . Repair Stations . | . . . . . . . . . Recycling Units 1 | . . . 1 . . . . . Scanalyzers . | . . . . . . . . . Garrison Access 1 | . . . . . . . . 1 Terminal Hacks 19 | . 4 3 6 . 2 1 3 . Record 3 | . 1 . . . 2 . . . Part Schematic 1 | . . . 1 . . . . . Robot Analysis 6 | . 1 2 1 . . 1 1 . Prototype ID Bank 4 | . 1 . 3 . . . . . Open Door 1 | . . 1 . . . . . . Branch Access Points 2 | . . . 1 . . . 1 . Terminal Index 1 | . 1 . . . . . . . Hauler Manifests 1 | . . . . . . . 1 . Fabricator Hacks . | . . . . . . . . . Repair Station Hacks . | . . . . . . . . . Recycling Unit Hacks . | . . . . . . . . . Scanalyzer . | . . . . . . . . . Garrison Access Hacks 1 | . . . . . . . . 1 Seal Access 1 | . . . . . . . . 1 Unauthorized Hacks 6 | . 2 . 3 . . . 1 . Terminals 5 | . 2 . 2 . . . 1 . Botnet 4 | . 2 . 1 . . . 1 . Operators 1 | . . . 1 . . . . . Fabricators . | . . . . . . . . . Repair Stations . | . . . . . . . . . Recycling Units 1 | . . . 1 . . . . . Tunnel 1 | . . . 1 . . . . . Scanalyzers . | . . . . . . . . . Garrison Access . | . . . . . . . . . Data Cores Recovered . | . . . . . . . . . Used . | . . . . . . . . . Hacking Detections 11 | . 3 1 4 . . 1 1 1 Full Trace Events 5 | . 1 1 1 . . 1 1 . Feedback Events . | . . . . . . . . . Feedback Blocked . | . . . . . . . . . Robot Schematics Acquired . | . . . . . . . . . Robots Built . | . . . . . . . . . Authchips . | . . . . . . . . . Time . | . . . . . . . . . Total Robot Build Rating . | . . . . . . . . . Part Schematics Acquired 1 | . . . 1 . . . . . Parts Built . | . . . . . . . . . Authchips . | . . . . . . . . . Time . | . . . . . . . . . Total Part Build Rating . | . . . . . . . . . Parts Repaired . | . . . . . . . . . Time . | . . . . . . . . . Parts Recycled . | . . . . . . . . . Recycled Matter . | . . . . . . . . . Retrieved Matter . | . . . . . . . . . Retrieved Components . | . . . . . . . . . Parts Scanalyzed . | . . . . . . . . . Part Schematics Acquired . | . . . . . . . . . Parts Damaged . | . . . . . . . . . Bothacking | -11 -10 -10 -9 -9 -9 -8 -8 -8 ------------ Run | Scr Mat Min Mat Min Exi Min Mat Sto Used RIF Installer . | . . . . . . . . . Robots Hacked . | . . . . . . . . . Non-combat . | . . . . . . . . . Combat . | . . . . . . . . . Robot Hacks Applied . | . . . . . . . . . Relay Couplers Released . | . . . . . . . . . Fabnet Peak Effective % . | . . . . . . . . . Robots Rewired . | . . . . . . . . . Allies Hacked . | . . . . . . . . . Hacks Repelled . | . . . . . . . . . Allies | -11 -10 -10 -9 -9 -9 -8 -8 -8 -------- Run | Scr Mat Min Mat Min Exi Min Mat Sto Total Allies 2 | . . . . . . . . 2 Largest Group 2 | . . . . . . . . 2 Highest-Rated Group 62 | . . . . . . . . 62 Highest-Rated Ally 31 | . . . . . . . . 31 Total Orders . | . . . . . . . . . Ally Attacks 9 | . . . . . . . . 9 Total Damage 190 | . . . . . . . . 190 Kills 1 | . . . . . . . . 1 Allies Corrupted . | . . . . . . . . . Allies Melted . | . . . . . . . . . Intel | -11 -10 -10 -9 -9 -9 -8 -8 -8 ------- Run | Scr Mat Min Mat Min Exi Min Mat Sto Robot Analysis Total 6 | . 1 2 1 . . 1 1 . Derelict Logs Recovered 4 | . . 2 . 2 . . . . Drone Launches . | . . . . . . . . . Drone Recoveries . | . . . . . . . . . Exploration | -11 -10 -10 -9 -9 -9 -8 -8 -8 ------------- Run | Scr Mat Min Mat Min Exi Min Mat Sto Turns Passed 4394 | 112 299 479 699 1250 389 386 488 292 Spaces Moved 2673 | 61 226 359 438 616 219 312 338 104 Core 7 | 7 . . . . . . . . Treads 73 | . . . . . . . 15 58 Legs 1872 | 54 226 359 438 616 179 . . . Wheels 721 | . . . . . 40 312 323 46 Hover . | . . . . . . . . . Flight . | . . . . . . . . . Fastest Speed 50 | 50 120 120 120 190 115 105 105 105 Average Speed 139 | 120 120 120 124 190 176 105 110 133 Slowest Speed 240 | 200 120 120 190 190 190 115 240 240 Overloaded Moves . | . . . . . . . . . Propulsion Burnouts . | . . . . . . . . . Robots Hopped . | . . . . . . . . . Cave-ins Triggered 1 | . . . . 1 . . . . Exploration Rate (%) 44 | 5 38 52 32 99 60 64 27 22 Regions Visited 8 Branch Regions 5 Pre-discovered Areas 2 | . . 1 1 . . . . . Known Exits Taken 2 | . . . 1 . . . 1 . Unknown Exits Taken 6 | 1 1 1 . 1 1 1 . . Scrap Searched 5 | . . 1 . 2 . 2 . . Spaces Dug 8 | . . . 1 . . 7 . . Terrain Destroyed 114 | . . . 24 41 . 49 . . Melee 1 | . . . 1 . . . . . Projectile . | . . . . . . . . . AOE 113 | . . . 23 41 . 49 . . Terrain Rammed . | . . . . . . . . . Walls Destroyed . | . . . . . . . . . Machines Disabled . | . . . . . . . . . Actions | -11 -10 -10 -9 -9 -9 -8 -8 -8 --------- Run | Scr Mat Min Mat Min Exi Min Mat Sto Total 3107 | 82 241 387 536 663 221 347 420 210 Wait 166 | 2 5 9 32 13 . 15 16 74 Move 2664 | 60 225 358 437 614 218 311 337 104 Hop . | . . . . . . . . . Pick Up 41 | 5 3 2 5 8 . 1 17 . Fast Attach 23 | 7 . 1 5 . . 2 6 2 Attach 13 | . . . 2 4 . 1 3 3 Detach 5 | . . . 3 . 1 . 1 . Swap 24 | 1 . 1 9 4 2 4 2 1 Drop 36 | . 1 4 12 . . . 18 1 Fire 131 | 7 7 12 29 18 . 13 20 25 Melee 2 | . . . 2 . . . . . Ram . | . . . . . . . . . Kick 1 | . . . . 1 . . . . Crush . | . . . . . . . . . Escape Stasis 1 | . . . . 1 . . . . Rewire . | . . . . . . . . . Trap . | . . . . . . . . . Miscellaneous . | . . . . . . . . . Route ------- -11/Scrapyard -10/Materials -10/Mines -9/Materials (discovered 2 exits: *Mat / *Min) -9/Mines (discovered 3 exits: *Mat x2 / *Exi) -9/Exiles (discovered 2 exits: *Min x2) -8/Mines (discovered 2 exits: *Mat x2) -8/Materials (discovered 2 exits: *Sto x2) -8/Storage History --------- Turn | Location | Event 5 | -11/Scrapyard | Discovered new exit (range 16) 113 | -11/Scrapyard | Entered Materials 304 | -10/Materials | Build established: Mutant 346 | -10/Materials | Discovered new exit (range 11) 412 | -10/Materials | Entered Mines 423 | -10/Mines | Found the Drone Emporium 429 | -10/Mines | Found Prototype Device 510 | -10/Mines | Discovered new exit (range 8) 511 | -10/Mines | Learned location of Storage (-8) 677 | -10/Mines | A weapon hastily lodged in a ceiling crevice suddenly fell to the ground 779 | -10/Mines | Learned Materials stockpile data 790 | -10/Mines | Assembled infested the area 818 | -10/Mines | Learned Materials emergency access door positions 891 | -10/Mines | Entered Materials 891 | -9/Materials | Evolved 2 slots: Propulsion x1, Utility x1 892 | -9/Materials | Identified Bomb Drone Bay 1207 | -9/Materials | Identified exit to Mines 1498 | -9/Materials | Discovered new exit (range 10) 1590 | -9/Materials | Entered Mines 1666 | -9/Mines | Build established: Scavenger-Mutant 2136 | -9/Mines | Learned Materials stockpile data 2168 | -9/Mines | Discovered new exit (range 6) 2401 | -9/Mines | Received a Rocket Launcher from a helpful Derelict 2428 | -9/Mines | Learned Materials garrison access intel 2525 | -9/Mines | Discovered new exit (range 8) 2633 | -9/Mines | Crushed by falling debris 2833 | -9/Mines | Deemed a non-threat by the Exiles lab entrance 2833 | -9/Mines | Discovered new exit (range 5) 2840 | -9/Mines | Entered Exiles 2840 | -9/Exiles | Found Exiles lab abandoned 2871 | -9/Exiles | Discovered new exit (range 15) 3220 | -9/Exiles | Discovered new exit (range 10) 3229 | -9/Exiles | Entered Mines 3349 | -8/Mines | System corruption reached 10% 3399 | -8/Mines | Core integrity fell below 50% 3494 | -8/Mines | Discovered new exit (range 10) 3606 | -8/Mines | Discovered new exit (range 10) 3615 | -8/Mines | Entered Materials 3615 | -8/Materials | Evolved 2 slots: Utility x1, Weapon x1 3617 | -8/Materials | Loaded intel: 1 garrison access location 3813 | -8/Materials | Discovered new exit (range 14) 3915 | -8/Materials | Build established: Scavenger-Tank 3995 | -8/Materials | Identified exit to Storage 4103 | -8/Materials | Entered Storage 4312 | -8/Storage | Lost 5 parts (3n2u) 4333 | -8/Storage | Met a pair of Derelict thieves 4395 | -8/Storage | Self-destructed Last Messages --------------- 04301_ Acquired Imp. Heat Sink. 04303_ Acquired 10 matter. 04310_ Connecting with Terminal... 04333_ Connecting with Door Terminal... 04333_ A pair of derelicts emerge from hiding: "Whew, we thought you were one of them, but you're obviously not! Quick, help us haul this stuff before they figure out we jammed the door open." 04344_ ALERT: Breach in storage area. Dispatching assault force. 04344_ OF-K2H(g): "So much for stealth, let's take what we have and get out of here before it's too late." 04353_ Slug penetrates Wall. 04354_ H-55 Commando suffers critical hit (Burn). 04356_ Slug penetrates LF-V4H(g). 04357_ H-55 Commando suffers critical hit (Burn). 04359_ Slug penetrates LF-V4H(g). 04359_ LF-V4H(g) suffers critical hit (Destroy). 04360_ H-55 Commando heat spikes uncontrollably. 04360_ H-55 Commando destroyed. 04362_ Acquired 24 matter. 04382_ K-01 Serf collects debris. Map ----- +----------------------------------------------------+ | ! ?????????????????????????????????????????????? | | ??????????????????????????????????????????? | | #?????????????????????????????????????????? | | #?????????????????????????????????????????? | | #?????????????????????????????????????????? | | #?????????????????????????????????????????? | | =! #?????????????????????????????????????????? | | %! #?????????????????????????????????????????? | | ! #?????????????????????????????????????????? | | #?????????????????????????????????????????? | | #????####?????????????????????????????????? | | ####?* *#?????????????????????????????????? | | ##T# ** #?????????????????????????????????? | | # " #?????????????????????????????????? | | """ # *#?????????????????????????????????? | | G" + " * #?????????????????????????????????? | | """ # # **#?????????????????????????????????? | | ####?####?????????????????????????????????? | | #?????????????????????????????????????????? | | # #?????????????????????????????????????????? | | # #?????????????????????????????????????????? | | # ###########???????????????????????????????? | | #+## # #???????????????????????????????? | | ## # #???????????????????????????????? | | ## # ###############C#???????????????? | | ## +% g k/u gg@kY C a ????????? | | ## # ############### ????????? | | ## # #???????????????????????????????? | | ## # #???????????????????????????????? | | ## # #???????????????????????????????? | | ## ###########???????????????????????????????? | | ### #????????????????????????????????????????? | | #????????????????????????????????????????? | | !#????????????????????????????????????????? | | #????????????????????????????????????????? | | ### #????????????????????????????????????????? | | ??#######????????????????????????????????????????? | | ?????????????????????????????????????????????????? | | ?????????????????????????????????????????????????? | | ?????????????????????????????????????????????????? | | | | | | | | | | | | | | | | | | | | | +----------------------------------------------------+ Best States ------------- Heat Dissipation 45 Coolant Potential 50 Energy Generation 18 Energy Capacity 240 Matter Stores 300 Matter Capacity 300 Sight Range 20 Robot Scan Range 14 Terrain Scan Density 10 Armor Coverage 150 Evasion (%) 55 Targeting Accuracy 5 Recoil Reduction 2 Offensive Hacking 10 Item Schematics ----------------- Lrg. Storage Unit | -9/Materials | Hacked Robot Schematics ------------------ None Fabricated ------------ Nothing Alien Tech Used ----------------- None Achievements -------------- None Challenges ------------ None Game ------ Seed ShieldSubatomicRifle Manual? 0 Play Time 00:39:21 Cumulative 186.8 hours Start 2022.04.23 @ 23:54:56 End 2022.04.24 @ 00:33:02 Sessions 1 Manual Loads 0 Difficulty Rogue Special Mode None Game No. 135 Rogue 112 Adventurer 6 Explorer 17 Win Type - Total 13 Types 7/0/2/1/0/1/1/1/0 Lore% 90 Gallery% 89 Achievement% 67 Wizard Run 0 Options --------- ASCII 0 Keyboard 0 Movement Numpad Keybinds 0 Fullscreen 1 Font 12/Fuzzy Map View 83x54 Tactical HUD 1 Map Filters NONE Filters NONE Steam 1 RUN: 3ca49b75-fba5-4c18-b5b0-bb9a09beb899